[Event "Titled Tuesday Blitz March 01 Early 2022"]
[White "Jary, Sergey"]
[Black "Molina, Roberto Junio Brito"]
[WhiteFideId "14110350"]
[BlackFideId "2109450"]
[WhiteElo "2260"]
[BlackElo "2402"]
[Result "0-1"]
[Round "11"]
[TimeControl "180+1"]
[Date "2022.03.01"]
[WhiteClock "0:00:01"]
[BlackClock "0:00:15"]

1. e4 {[%clk 0:03:00]}  c6 {[%clk 0:03:00]} 2. d4 {[%clk 0:02:59]}  d5 {[%clk 0:03:01]} 3. Nd2 {[%clk 0:02:59]}  dxe4 {[%clk 0:03:01]} 4. Nxe4 {[%clk 0:02:59]}  Nd7 {[%clk 0:03:01]} 5. Nf3 {[%clk 0:02:56]}  Ngf6 {[%clk 0:03:01]} 6. Ng3 {[%clk 0:02:56]}  e6 {[%clk 0:03:01]} 7. Bd3 {[%clk 0:02:54]}  c5 {[%clk 0:03:01]} 8. O-O {[%clk 0:02:54]}  cxd4 {[%clk 0:03:00]} 9. Nxd4 {[%clk 0:02:53]}  Bc5 {[%clk 0:02:59]} 10. c3 {[%clk 0:02:28]}  O-O {[%clk 0:02:58]} 11. Qe2 {[%clk 0:02:28]}  Re8 {[%clk 0:02:57]} 12. Re1 {[%clk 0:02:23]}  b6 {[%clk 0:02:45]} 13. Qf3 {[%clk 0:02:20]}  Rb8 {[%clk 0:02:24]} 14. Bg5 {[%clk 0:02:16]}  Bb7 {[%clk 0:02:23]} 15. Ne4 {[%clk 0:02:13]}  Be7 {[%clk 0:02:20]} 16. Rad1 {[%clk 0:02:13]}  Ne5 {[%clk 0:01:57]} 17. Qg3 {[%clk 0:02:07]}  Nxd3 {[%clk 0:01:53]} 18. Bxf6 {[%clk 0:02:07]}  Bxf6 {[%clk 0:01:54]} 19. Nxf6+ {[%clk 0:01:54]}  Qxf6 {[%clk 0:01:55]} 20. Rxd3 {[%clk 0:01:55]}  Rbd8 {[%clk 0:01:52]} 21. Red1 {[%clk 0:01:52]}  Bd5 {[%clk 0:01:46]} 22. a3 {[%clk 0:01:49]}  g6 {[%clk 0:01:38]} 23. h3 {[%clk 0:01:46]}  Rd7 {[%clk 0:01:34]} 24. Kh2 {[%clk 0:01:41]}  Red8 {[%clk 0:01:31]} 25. Nb5 {[%clk 0:01:39]}  a6 {[%clk 0:01:28]} 26. Nd4 {[%clk 0:01:33]}  b5 {[%clk 0:01:28]} 27. Nc2 {[%clk 0:01:28]}  e5 {[%clk 0:01:14]} 28. Kg1 {[%clk 0:01:24]}  Be6 {[%clk 0:01:12]} 29. Rxd7 {[%clk 0:01:17]}  Rxd7 {[%clk 0:01:12]} 30. Rxd7 {[%clk 0:01:17]}  Bxd7 {[%clk 0:01:13]} 31. Nb4 {[%clk 0:01:17]}  Qd6 {[%clk 0:01:10]} 32. Qe3 {[%clk 0:01:11]}  a5 {[%clk 0:01:09]} 33. Nd3 {[%clk 0:01:09]}  f6 {[%clk 0:01:08]} 34. b4 {[%clk 0:01:09]}  a4 {[%clk 0:01:05]} 35. f3 {[%clk 0:01:07]}  Kf7 {[%clk 0:01:03]} 36. h4 {[%clk 0:01:07]}  h5 {[%clk 0:01:02]} 37. Nc5 {[%clk 0:01:03]}  Bc6 {[%clk 0:01:02]} 38. Qh6 {[%clk 0:00:56]}  f5 {[%clk 0:01:01]} 39. Qe3 {[%clk 0:00:54]}  Qd5 {[%clk 0:00:57]} 40. Kf2 {[%clk 0:00:51]}  e4 {[%clk 0:00:50]} 41. fxe4 {[%clk 0:00:49]}  fxe4 {[%clk 0:00:50]} 42. Qf4+ {[%clk 0:00:47]}  Ke7 {[%clk 0:00:47]} 43. Ke3 {[%clk 0:00:42]}  Ke8 {[%clk 0:00:29]} 44. Qxe4+ {[%clk 0:00:37]}  Kf7 {[%clk 0:00:27]} 45. Qxd5+ {[%clk 0:00:36]}  Bxd5 {[%clk 0:00:28]} 46. g3 {[%clk 0:00:34]}  Kf6 {[%clk 0:00:27]} 47. Kd4 {[%clk 0:00:34]}  Bg2 {[%clk 0:00:26]} 48. Ne4+ {[%clk 0:00:31]}  Kf5 {[%clk 0:00:27]} 49. Nd6+ {[%clk 0:00:27]}  Kg4 {[%clk 0:00:27]} 50. Nxb5 {[%clk 0:00:24]}  Kxg3 {[%clk 0:00:28]} 51. Nd6 {[%clk 0:00:16]}  Kxh4 {[%clk 0:00:28]} 52. c4 {[%clk 0:00:16]}  Kg3 {[%clk 0:00:22]} 53. Nf7 {[%clk 0:00:12]}  h4 {[%clk 0:00:21]} 54. Ng5 {[%clk 0:00:12]}  Kg4 {[%clk 0:00:21]} 55. Nh7 {[%clk 0:00:06]}  h3 {[%clk 0:00:21]} 56. Nf6+ {[%clk 0:00:06]}  Kh4 {[%clk 0:00:20]} 57. c5 {[%clk 0:00:02]}  h2 {[%clk 0:00:20]} 58. b5 {[%clk 0:00:02]}  h1=Q {[%clk 0:00:20]} 59. c6 {[%clk 0:00:03]}  Qg1+ {[%clk 0:00:18]} 60. Ke5 {[%clk 0:00:02]}  Qc5+ {[%clk 0:00:17]} 61. Kf4 {[%clk 0:00:01]}  Qg5# {[%clk 0:00:15]} 0-1


[Site "https://www.chess.com"]

[Event "Titled Tuesday Blitz March 01 Early 2022"]
[White "Kosakowski, Jakub"]
[Black "Dobre, Claudiu-Cristian"]
[WhiteFideId "1185080"]
[BlackFideId "1211854"]
[WhiteElo "2476"]
[BlackElo "2207"]
[Result "1-0"]
[Round "11"]
[TimeControl "180+1"]
[Date "2022.03.01"]
[WhiteClock "0:01:53"]
[BlackClock "0:01:45"]

1. d4 {[%clk 0:03:00]}  d5 {[%clk 0:03:00]} 2. c4 {[%clk 0:03:00]}  c6 {[%clk 0:02:59]} 3. Nf3 {[%clk 0:02:58]}  Nf6 {[%clk 0:02:59]} 4. g3 {[%clk 0:02:57]}  Bg4 {[%clk 0:02:57]} 5. Ne5 {[%clk 0:02:50]}  Be6 {[%clk 0:02:55]} 6. cxd5 {[%clk 0:02:41]}  Bxd5 {[%clk 0:02:50]} 7. f3 {[%clk 0:02:41]}  c5 {[%clk 0:02:31]} 8. e4 {[%clk 0:02:37]}  Bc6 {[%clk 0:02:27]} 9. d5 {[%clk 0:02:33]}  Bd7 {[%clk 0:02:20]} 10. Nc3 {[%clk 0:02:29]}  Qc7 {[%clk 0:02:09]} 11. Bf4 {[%clk 0:02:23]}  g5 {[%clk 0:02:05]} 12. Nb5 {[%clk 0:01:57]}  Qb6 {[%clk 0:01:51]} 13. Nxd7 {[%clk 0:01:54]}  gxf4 {[%clk 0:01:45]} 14. Nxb6 {[%clk 0:01:53]} 1-0


[Site "https://www.chess.com"]

[Event "Titled Tuesday Blitz March 01 Early 2022"]
[White "Kretov, Evgenij"]
[Black "Astasio Lopez, David"]
[WhiteFideId "4167821"]
[BlackFideId "2230208"]
[WhiteElo "2303"]
[BlackElo "2355"]
[Result "0-1"]
[Round "11"]
[TimeControl "180+1"]
[Date "2022.03.01"]
[WhiteClock "0:00:28"]
[BlackClock "0:00:32"]

1. d4 {[%clk 0:03:00]}  d5 {[%clk 0:02:59]} 2. c4 {[%clk 0:03:00]}  c6 {[%clk 0:03:00]} 3. Nc3 {[%clk 0:03:01]}  Nf6 {[%clk 0:03:01]} 4. e3 {[%clk 0:03:01]}  e6 {[%clk 0:03:01]} 5. Nf3 {[%clk 0:03:01]}  Nbd7 {[%clk 0:03:02]} 6. Bd3 {[%clk 0:03:02]}  Bd6 {[%clk 0:03:03]} 7. e4 {[%clk 0:03:02]}  dxe4 {[%clk 0:03:02]} 8. Nxe4 {[%clk 0:03:03]}  Nxe4 {[%clk 0:03:03]} 9. Bxe4 {[%clk 0:03:03]}  e5 {[%clk 0:03:04]} 10. O-O {[%clk 0:03:03]}  exd4 {[%clk 0:03:04]} 11. Qxd4 {[%clk 0:03:03]}  Qf6 {[%clk 0:03:05]} 12. Bg5 {[%clk 0:02:34]}  Qxd4 {[%clk 0:03:02]} 13. Nxd4 {[%clk 0:02:34]}  Nc5 {[%clk 0:02:57]} 14. Rfe1 {[%clk 0:02:32]}  O-O {[%clk 0:02:55]} 15. Bc2 {[%clk 0:02:29]}  Ne6 {[%clk 0:02:48]} 16. Be3 {[%clk 0:02:20]}  Bb4 {[%clk 0:02:44]} 17. Re2 {[%clk 0:02:17]}  Re8 {[%clk 0:02:41]} 18. Rd1 {[%clk 0:02:15]}  Nxd4 {[%clk 0:02:26]} 19. Rxd4 {[%clk 0:02:14]}  Be6 {[%clk 0:02:17]} 20. Rh4 {[%clk 0:02:04]}  g6 {[%clk 0:02:09]} 21. b3 {[%clk 0:02:03]}  Rad8 {[%clk 0:02:02]} 22. Kf1 {[%clk 0:01:59]}  a6 {[%clk 0:01:56]} 23. Bb6 {[%clk 0:01:55]}  Rd2 {[%clk 0:01:51]} 24. Rxd2 {[%clk 0:01:55]}  Bxd2 {[%clk 0:01:52]} 25. Ke2 {[%clk 0:01:44]}  Bg5 {[%clk 0:01:50]} 26. Re4 {[%clk 0:01:44]}  f5 {[%clk 0:01:38]} 27. Re5 {[%clk 0:01:39]}  Bxc4+ {[%clk 0:01:36]} 28. bxc4 {[%clk 0:01:35]}  Rxe5+ {[%clk 0:01:36]} 29. Kd1 {[%clk 0:01:35]}  Re8 {[%clk 0:01:23]} 30. Bb3 {[%clk 0:01:30]}  Kg7 {[%clk 0:01:22]} 31. h3 {[%clk 0:01:13]}  Bd8 {[%clk 0:01:22]} 32. Bd4+ {[%clk 0:01:13]}  Bf6 {[%clk 0:01:22]} 33. Bb6 {[%clk 0:01:13]}  Re7 {[%clk 0:01:17]} 34. Kd2 {[%clk 0:01:12]}  Rd7+ {[%clk 0:01:18]} 35. Ke2 {[%clk 0:01:12]}  Bd4 {[%clk 0:01:17]} 36. Ba5 {[%clk 0:01:11]}  b6 {[%clk 0:01:09]} 37. Bb4 {[%clk 0:01:08]}  a5 {[%clk 0:01:07]} 38. Ba3 {[%clk 0:01:04]}  Bc3 {[%clk 0:00:57]} 39. Bc1 {[%clk 0:01:03]}  c5 {[%clk 0:00:51]} 40. Ba4 {[%clk 0:00:54]}  Re7+ {[%clk 0:00:50]} 41. Kd3 {[%clk 0:00:53]}  Bd4 {[%clk 0:00:50]} 42. f3 {[%clk 0:00:48]}  Re1 {[%clk 0:00:50]} 43. Bg5 {[%clk 0:00:47]}  Rg1 {[%clk 0:00:48]} 44. g4 {[%clk 0:00:46]}  Rg3 {[%clk 0:00:46]} 45. Bd1 {[%clk 0:00:41]}  Rxh3 {[%clk 0:00:44]} 46. gxf5 {[%clk 0:00:41]}  gxf5 {[%clk 0:00:44]} 47. Bd8 {[%clk 0:00:41]}  Rh6 {[%clk 0:00:43]} 48. f4 {[%clk 0:00:38]}  Rd6 {[%clk 0:00:42]} 49. Bc7 {[%clk 0:00:32]}  Rc6 {[%clk 0:00:40]} 50. Bd8 {[%clk 0:00:31]}  Bf6 {[%clk 0:00:31]} 51. Bxf6+ {[%clk 0:00:28]}  Rxf6 {[%clk 0:00:32]} 0-1


[Site "https://www.chess.com"]

[Event "Titled Tuesday Blitz March 01 Early 2022"]
[White "Kukhmazov, Arsen"]
[Black "Shuvalova, Polina"]
[WhiteFideId "24108260"]
[BlackFideId "24171760"]
[WhiteElo "2487"]
[BlackElo "2355"]
[Result "0-1"]
[Round "11"]
[TimeControl "180+1"]
[Date "2022.03.01"]
[WhiteClock "0:00:02"]
[BlackClock "0:00:09"]

1. d4 {[%clk 0:03:00]}  Nf6 {[%clk 0:02:58]} 2. c4 {[%clk 0:03:00]}  e6 {[%clk 0:02:57]} 3. Nf3 {[%clk 0:03:00]}  d5 {[%clk 0:02:57]} 4. e3 {[%clk 0:03:01]}  Be7 {[%clk 0:02:55]} 5. b3 {[%clk 0:03:00]}  O-O {[%clk 0:02:55]} 6. Bd3 {[%clk 0:03:00]}  b6 {[%clk 0:02:53]} 7. O-O {[%clk 0:03:00]}  Bb7 {[%clk 0:02:53]} 8. Bb2 {[%clk 0:03:00]}  Nbd7 {[%clk 0:02:50]} 9. Nc3 {[%clk 0:03:01]}  c5 {[%clk 0:02:48]} 10. Qe2 {[%clk 0:03:00]}  Rc8 {[%clk 0:02:45]} 11. Rac1 {[%clk 0:03:00]}  cxd4 {[%clk 0:02:37]} 12. exd4 {[%clk 0:03:00]}  dxc4 {[%clk 0:02:37]} 13. bxc4 {[%clk 0:03:01]}  Bd6 {[%clk 0:02:37]} 14. Rfd1 {[%clk 0:02:55]}  Re8 {[%clk 0:02:36]} 15. Ne5 {[%clk 0:02:41]}  Qe7 {[%clk 0:02:33]} 16. Nb5 {[%clk 0:02:40]}  a6 {[%clk 0:02:08]} 17. Nxd6 {[%clk 0:02:34]}  Qxd6 {[%clk 0:02:09]} 18. Qe3 {[%clk 0:01:26]}  Red8 {[%clk 0:02:04]} 19. Be2 {[%clk 0:01:12]}  Qc7 {[%clk 0:01:50]} 20. c5 {[%clk 0:01:00]}  Nxe5 {[%clk 0:01:32]} 21. dxe5 {[%clk 0:00:52]}  Nd5 {[%clk 0:01:31]} 22. cxb6 {[%clk 0:00:43]}  Qe7 {[%clk 0:01:14]} 23. Qa3 {[%clk 0:00:33]}  Qg5 {[%clk 0:01:11]} 24. Qg3 {[%clk 0:00:33]}  Qh6 {[%clk 0:01:06]} 25. Bf3 {[%clk 0:00:25]}  Nf4 {[%clk 0:01:03]} 26. Rxd8+ {[%clk 0:00:15]}  Rxd8 {[%clk 0:01:03]} 27. h4 {[%clk 0:00:15]}  g6 {[%clk 0:00:53]} 28. Rc7 {[%clk 0:00:08]}  Bxf3 {[%clk 0:00:50]} 29. Qxf3 {[%clk 0:00:08]}  Qxh4 {[%clk 0:00:45]} 30. b7 {[%clk 0:00:08]}  Kg7 {[%clk 0:00:20]} 31. g3 {[%clk 0:00:03]}  Qh3 {[%clk 0:00:19]} 32. Bd4 {[%clk 0:00:01]}  Rxd4 {[%clk 0:00:17]} 33. Rc1 {[%clk 0:00:01]}  Rb4 {[%clk 0:00:15]} 34. Re1 {[%clk 0:00:01]}  Nd5 {[%clk 0:00:13]} 35. Qd3 {[%clk 0:00:01]}  Rxb7 {[%clk 0:00:12]} 36. Qf3 {[%clk 0:00:02]}  Rb4 {[%clk 0:00:11]} 37. Qa3 {[%clk 0:00:02]}  Rh4 {[%clk 0:00:09]} 38. Qf3 {[%clk 0:00:02]}  Qh2+ {[%clk 0:00:09]} 0-1


[Site "https://www.chess.com"]

[Event "Titled Tuesday Blitz March 01 Early 2022"]
[White "Lou, Yiping"]
[Black "Ambartsumova, Karina"]
[WhiteFideId "8603928"]
[BlackFideId "4166299"]
[WhiteElo "2412"]
[BlackElo "2262"]
[Result "0-1"]
[Round "11"]
[TimeControl "180+1"]
[Date "2022.03.01"]
[WhiteClock "0:01:12"]
[BlackClock "0:00:18"]

1. d4 {[%clk 0:03:00]}  Nf6 {[%clk 0:02:59]} 2. Bf4 {[%clk 0:02:56]}  d5 {[%clk 0:02:58]} 3. e3 {[%clk 0:02:52]}  e6 {[%clk 0:02:58]} 4. Nf3 {[%clk 0:02:52]}  Bd6 {[%clk 0:02:58]} 5. Nbd2 {[%clk 0:02:51]}  O-O {[%clk 0:02:57]} 6. Bg3 {[%clk 0:02:48]}  c5 {[%clk 0:02:57]} 7. c3 {[%clk 0:02:45]}  Qc7 {[%clk 0:02:56]} 8. Ne5 {[%clk 0:02:41]}  b6 {[%clk 0:02:51]} 9. Bd3 {[%clk 0:02:39]}  Ba6 {[%clk 0:02:50]} 10. Bb1 {[%clk 0:02:33]}  Nc6 {[%clk 0:02:31]} 11. f4 {[%clk 0:02:29]}  b5 {[%clk 0:02:05]} 12. Bh4 {[%clk 0:02:28]}  Nd7 {[%clk 0:02:00]} 13. Ndf3 {[%clk 0:02:23]}  f6 {[%clk 0:01:45]} 14. Qd3 {[%clk 0:02:15]}  f5 {[%clk 0:01:39]} 15. g4 {[%clk 0:02:15]}  Qc8 {[%clk 0:01:02]} 16. gxf5 {[%clk 0:02:14]}  exf5 {[%clk 0:01:01]} 17. Rg1 {[%clk 0:02:13]}  b4 {[%clk 0:00:59]} 18. Qd2 {[%clk 0:02:07]}  cxd4 {[%clk 0:00:57]} 19. exd4 {[%clk 0:02:07]}  bxc3 {[%clk 0:00:57]} 20. bxc3 {[%clk 0:02:07]}  Nf6 {[%clk 0:00:53]} 21. Qg2 {[%clk 0:01:56]}  Ne8 {[%clk 0:00:31]} 22. Ng5 {[%clk 0:01:50]}  Nxe5 {[%clk 0:00:31]} 23. Qxd5+ {[%clk 0:01:31]}  Nf7 {[%clk 0:00:25]} 24. Bxf5 {[%clk 0:01:27]}  Qxc3+ {[%clk 0:00:24]} 25. Kf2 {[%clk 0:01:24]}  Qd2+ {[%clk 0:00:23]} 26. Kg3 {[%clk 0:01:21]}  Bxf4+ {[%clk 0:00:23]} 27. Kf3 {[%clk 0:01:18]}  Be2+ {[%clk 0:00:19]} 28. Kg2 {[%clk 0:01:13]}  Bc4+ {[%clk 0:00:18]} 29. Kh3 {[%clk 0:01:12]}  Bxd5 {[%clk 0:00:18]} 30. Bxh7+ {[%clk 0:01:12]}  Kh8 {[%clk 0:00:18]} 0-1


[Site "https://www.chess.com"]

[Event "Titled Tuesday Blitz March 01 Early 2022"]
[White "Martinez Alcantara, Jose Eduardo"]
[Black "Caruana, Fabiano"]
[WhiteFideId "3805662"]
[BlackFideId "2020009"]
[WhiteElo "2690"]
[BlackElo "2744"]
[Result "1/2-1/2"]
[Round "11"]
[TimeControl "180+1"]
[Date "2022.03.01"]
[WhiteClock "0:00:18"]
[BlackClock "0:00:27"]

1. e4 {[%clk 0:03:00]}  e5 {[%clk 0:03:00]} 2. Nf3 {[%clk 0:03:01]}  Nc6 {[%clk 0:03:00]} 3. Bb5 {[%clk 0:03:02]}  a6 {[%clk 0:03:01]} 4. Ba4 {[%clk 0:03:02]}  Nf6 {[%clk 0:03:01]} 5. d3 {[%clk 0:03:02]}  b5 {[%clk 0:02:58]} 6. Bb3 {[%clk 0:02:58]}  Bc5 {[%clk 0:02:58]} 7. a4 {[%clk 0:02:57]}  b4 {[%clk 0:02:52]} 8. a5 {[%clk 0:02:53]}  d6 {[%clk 0:02:52]} 9. h3 {[%clk 0:02:53]}  O-O {[%clk 0:02:52]} 10. Bg5 {[%clk 0:02:52]}  h6 {[%clk 0:02:51]} 11. Bh4 {[%clk 0:02:51]}  g5 {[%clk 0:02:51]} 12. Bg3 {[%clk 0:02:51]}  Be6 {[%clk 0:02:40]} 13. Nbd2 {[%clk 0:02:50]}  Qd7 {[%clk 0:02:36]} 14. Ba4 {[%clk 0:02:48]}  Qe8 {[%clk 0:02:27]} 15. c3 {[%clk 0:02:38]}  Bd7 {[%clk 0:02:25]} 16. Bb3 {[%clk 0:02:37]}  Rb8 {[%clk 0:02:24]} 17. Bc4 {[%clk 0:02:37]}  bxc3 {[%clk 0:02:12]} 18. bxc3 {[%clk 0:02:38]}  Nh5 {[%clk 0:02:11]} 19. Nxg5 {[%clk 0:01:51]}  Nxg3 {[%clk 0:02:05]} 20. fxg3 {[%clk 0:01:50]}  hxg5 {[%clk 0:01:53]} 21. Qh5 {[%clk 0:01:50]}  Ne7 {[%clk 0:01:43]} 22. Qxg5+ {[%clk 0:01:50]}  Kh7 {[%clk 0:01:43]} 23. Rf1 {[%clk 0:01:51]}  f5 {[%clk 0:01:30]} 24. Qh4+ {[%clk 0:01:37]}  Kg6 {[%clk 0:01:24]} 25. g4 {[%clk 0:00:46]}  f4 {[%clk 0:01:17]} 26. Nf3 {[%clk 0:00:42]}  Ng8 {[%clk 0:00:42]} 27. d4 {[%clk 0:00:22]}  exd4 {[%clk 0:00:31]} 28. e5 {[%clk 0:00:23]}  Bb5 {[%clk 0:00:28]} 29. Bxg8 {[%clk 0:00:17]}  Rxg8 {[%clk 0:00:27]} 30. Qf6+ {[%clk 0:00:17]}  Kh7 {[%clk 0:00:28]} 31. Qh4+ {[%clk 0:00:17]}  Kg7 {[%clk 0:00:27]} 32. Qf6+ {[%clk 0:00:17]}  Kh7 {[%clk 0:00:27]} 33. Qh4+ {[%clk 0:00:17]}  Kg7 {[%clk 0:00:28]} 34. Qf6+ {[%clk 0:00:18]}  Kh7 {[%clk 0:00:27]} 1/2-1/2


[Site "https://www.chess.com"]

[Event "Titled Tuesday Blitz March 01 Early 2022"]
[White "Matlakov, Maxim"]
[Black "Bortnyk, Olexandr"]
[WhiteFideId "4168003"]
[BlackFideId "14120828"]
[WhiteElo "2661"]
[BlackElo "2723"]
[Result "0-1"]
[Round "11"]
[TimeControl "180+1"]
[Date "2022.03.01"]
[WhiteClock "0:00:00"]
[BlackClock "0:00:02"]

1. Nf3 {[%clk 0:03:00]}  Nf6 {[%clk 0:02:58]} 2. g3 {[%clk 0:03:01]}  g6 {[%clk 0:02:55]} 3. Bg2 {[%clk 0:03:01]}  Bg7 {[%clk 0:02:55]} 4. O-O {[%clk 0:03:01]}  O-O {[%clk 0:02:56]} 5. d4 {[%clk 0:03:02]}  d6 {[%clk 0:02:56]} 6. Re1 {[%clk 0:03:01]}  Bf5 {[%clk 0:02:56]} 7. Nh4 {[%clk 0:02:59]}  Be4 {[%clk 0:02:55]} 8. f3 {[%clk 0:02:56]}  Bc6 {[%clk 0:02:55]} 9. e4 {[%clk 0:02:57]}  e5 {[%clk 0:02:56]} 10. d5 {[%clk 0:02:52]}  Bd7 {[%clk 0:02:54]} 11. c4 {[%clk 0:02:52]}  c6 {[%clk 0:02:45]} 12. Nc3 {[%clk 0:02:51]}  cxd5 {[%clk 0:02:42]} 13. cxd5 {[%clk 0:02:45]}  Qb6+ {[%clk 0:02:37]} 14. Kh1 {[%clk 0:02:21]}  Rc8 {[%clk 0:02:37]} 15. Qe2 {[%clk 0:02:20]}  Na6 {[%clk 0:02:31]} 16. Be3 {[%clk 0:02:20]}  Qb4 {[%clk 0:02:29]} 17. Rec1 {[%clk 0:02:10]}  Nc5 {[%clk 0:02:26]} 18. Qd2 {[%clk 0:02:09]}  a5 {[%clk 0:02:21]} 19. Bf1 {[%clk 0:02:08]}  a4 {[%clk 0:02:19]} 20. Rab1 {[%clk 0:02:08]}  Qa5 {[%clk 0:01:28]} 21. Ng2 {[%clk 0:02:06]}  b5 {[%clk 0:01:27]} 22. Ne1 {[%clk 0:02:05]}  b4 {[%clk 0:01:25]} 23. Nd1 {[%clk 0:02:05]}  Ncxe4 {[%clk 0:01:18]} 24. fxe4 {[%clk 0:02:04]}  Nxe4 {[%clk 0:01:19]} 25. Qg2 {[%clk 0:01:42]}  Nf6 {[%clk 0:01:10]} 26. Rxc8+ {[%clk 0:01:23]}  Rxc8 {[%clk 0:01:09]} 27. Rc1 {[%clk 0:01:24]}  Nxd5 {[%clk 0:00:35]} 28. Rxc8+ {[%clk 0:01:22]}  Bxc8 {[%clk 0:00:36]} 29. Bc4 {[%clk 0:01:19]}  Bb7 {[%clk 0:00:33]} 30. Bd2 {[%clk 0:01:11]}  Bc6 {[%clk 0:00:18]} 31. Nf3 {[%clk 0:00:44]}  Qa8 {[%clk 0:00:15]} 32. Qf1 {[%clk 0:00:21]}  h6 {[%clk 0:00:04]} 33. Kg1 {[%clk 0:00:20]}  e4 {[%clk 0:00:01]} 34. Bxd5 {[%clk 0:00:06]}  Bxd5 {[%clk 0:00:01]} 35. Nh4 {[%clk 0:00:00]}  Bxa2 {[%clk 0:00:02]} 0-1


[Site "https://www.chess.com"]

[Event "Titled Tuesday Blitz March 01 Early 2022"]
[White "Moreira, Ronaldo Alonso"]
[Black "Thorhallsson, Simon"]
[WhiteFideId "2110547"]
[BlackFideId "2310090"]
[WhiteElo "2037"]
[BlackElo "2137"]
[Result "0-1"]
[Round "11"]
[TimeControl "180+1"]
[Date "2022.03.01"]
[WhiteClock "0:00:03"]
[BlackClock "0:02:05"]

1. d4 {[%clk 0:03:00]}  Nf6 {[%clk 0:02:58]} 2. c4 {[%clk 0:03:00]}  e5 {[%clk 0:02:57]} 3. dxe5 {[%clk 0:02:59]}  Ng4 {[%clk 0:02:57]} 4. Nf3 {[%clk 0:03:00]}  Bc5 {[%clk 0:02:56]} 5. e3 {[%clk 0:03:00]}  Nc6 {[%clk 0:02:56]} 6. Be2 {[%clk 0:02:56]}  O-O {[%clk 0:02:56]} 7. Nc3 {[%clk 0:02:54]}  Re8 {[%clk 0:02:56]} 8. O-O {[%clk 0:02:50]}  Ncxe5 {[%clk 0:02:56]} 9. Nxe5 {[%clk 0:02:48]}  Nxe5 {[%clk 0:02:57]} 10. b3 {[%clk 0:02:44]}  a5 {[%clk 0:02:57]} 11. Na4 {[%clk 0:02:43]}  Bf8 {[%clk 0:02:55]} 12. c5 {[%clk 0:02:31]}  d6 {[%clk 0:02:51]} 13. Bb2 {[%clk 0:02:26]}  Qh4 {[%clk 0:02:46]} 14. Qd4 {[%clk 0:02:02]}  Qh6 {[%clk 0:02:31]} 15. Rac1 {[%clk 0:01:10]}  Bd7 {[%clk 0:02:30]} 16. Qf4 {[%clk 0:00:53]}  Bxa4 {[%clk 0:02:20]} 17. Qxh6 {[%clk 0:00:50]}  gxh6 {[%clk 0:02:21]} 18. bxa4 {[%clk 0:00:47]}  dxc5 {[%clk 0:02:22]} 19. Rfd1 {[%clk 0:00:37]}  b6 {[%clk 0:02:18]} 20. Bb5 {[%clk 0:00:17]}  Re6 {[%clk 0:02:17]} 21. Bxe5 {[%clk 0:00:12]}  Rxe5 {[%clk 0:02:17]} 22. Rd7 {[%clk 0:00:12]}  Re7 {[%clk 0:02:14]} 23. Rcd1 {[%clk 0:00:12]}  Rxd7 {[%clk 0:02:07]} 24. Rxd7 {[%clk 0:00:12]}  Bd6 {[%clk 0:02:08]} 25. Bc4 {[%clk 0:00:12]}  Rf8 {[%clk 0:02:09]} 26. g3 {[%clk 0:00:07]}  Kg7 {[%clk 0:02:09]} 27. Kg2 {[%clk 0:00:08]}  Kg6 {[%clk 0:02:07]} 28. Bd3+ {[%clk 0:00:03]}  Kf6 {[%clk 0:02:07]} 29. Bxh7 {[%clk 0:00:03]}  Ke6 {[%clk 0:02:06]} 30. Rxd6+ {[%clk 0:00:03]}  cxd6 {[%clk 0:02:05]} 0-1


[Site "https://www.chess.com"]

[Event "Titled Tuesday Blitz March 01 Early 2022"]
[White "Muradov, Soltan"]
[Black "Gerbelli Neto, Eduardo"]
[WhiteFideId "14002108"]
[BlackFideId "2103281"]
[WhiteElo "1854"]
[BlackElo "2178"]
[Result "1-0"]
[Round "11"]
[TimeControl "180+1"]
[Date "2022.03.01"]
[WhiteClock "0:00:27"]
[BlackClock "0:00:17"]

1. d4 {[%clk 0:02:49]}  d5 {[%clk 0:02:59]} 2. Nf3 {[%clk 0:02:46]}  Nf6 {[%clk 0:02:59]} 3. c4 {[%clk 0:02:46]}  c6 {[%clk 0:02:59]} 4. Nc3 {[%clk 0:02:46]}  e6 {[%clk 0:02:58]} 5. Bg5 {[%clk 0:02:44]}  dxc4 {[%clk 0:02:58]} 6. e3 {[%clk 0:02:44]}  b5 {[%clk 0:02:54]} 7. a4 {[%clk 0:02:45]}  Bb4 {[%clk 0:02:53]} 8. Be2 {[%clk 0:02:43]}  Nbd7 {[%clk 0:02:52]} 9. O-O {[%clk 0:02:43]}  Bxc3 {[%clk 0:02:53]} 10. bxc3 {[%clk 0:02:44]}  Bb7 {[%clk 0:02:52]} 11. Qb1 {[%clk 0:02:43]}  Qb6 {[%clk 0:02:46]} 12. a5 {[%clk 0:02:40]}  Qc7 {[%clk 0:02:39]} 13. a6 {[%clk 0:02:39]}  Bc8 {[%clk 0:02:38]} 14. Qb4 {[%clk 0:02:16]}  Nd5 {[%clk 0:02:36]} 15. Qa3 {[%clk 0:02:16]}  f6 {[%clk 0:02:34]} 16. Bh4 {[%clk 0:02:14]}  c5 {[%clk 0:02:02]} 17. Bg3 {[%clk 0:02:09]}  Qc6 {[%clk 0:02:02]} 18. e4 {[%clk 0:02:08]}  N5b6 {[%clk 0:01:56]} 19. Nd2 {[%clk 0:01:39]}  cxd4 {[%clk 0:01:46]} 20. cxd4 {[%clk 0:01:37]}  e5 {[%clk 0:01:39]} 21. Nf3 {[%clk 0:01:19]}  Qe6 {[%clk 0:00:37]} 22. Rfb1 {[%clk 0:00:55]}  Qe7 {[%clk 0:00:22]} 23. Rxb5 {[%clk 0:00:48]}  Qxa3 {[%clk 0:00:21]} 24. Rxa3 {[%clk 0:00:49]}  exd4 {[%clk 0:00:21]} 25. Nxd4 {[%clk 0:00:47]}  O-O {[%clk 0:00:17]} 26. Ne6 {[%clk 0:00:46]}  Rf7 {[%clk 0:00:14]} 27. Nc7 {[%clk 0:00:41]}  Rb8 {[%clk 0:00:15]} 28. Ne8 {[%clk 0:00:40]}  Ra8 {[%clk 0:00:14]} 29. h3 {[%clk 0:00:34]}  Ne5 {[%clk 0:00:15]} 30. Nd6 {[%clk 0:00:28]}  Re7 {[%clk 0:00:14]} 31. Bxe5 {[%clk 0:00:27]}  fxe5 {[%clk 0:00:13]} 32. Nxc4 {[%clk 0:00:27]}  Bd7 {[%clk 0:00:13]} 33. Rc5 {[%clk 0:00:26]}  Rc8 {[%clk 0:00:13]} 34. Rxc8+ {[%clk 0:00:26]}  Bxc8 {[%clk 0:00:14]} 35. Nxb6 {[%clk 0:00:26]}  axb6 {[%clk 0:00:12]} 36. a7 {[%clk 0:00:26]}  Bb7 {[%clk 0:00:12]} 37. a8=Q+ {[%clk 0:00:27]}  Bxa8 {[%clk 0:00:13]} 38. Rxa8+ {[%clk 0:00:27]}  Kf7 {[%clk 0:00:14]} 39. Bc4+ {[%clk 0:00:27]}  Kg6 {[%clk 0:00:14]} 40. Bd5 {[%clk 0:00:28]}  Rc7 {[%clk 0:00:14]} 41. Ra6 {[%clk 0:00:29]}  Rc1+ {[%clk 0:00:14]} 42. Kh2 {[%clk 0:00:29]}  Rb1 {[%clk 0:00:15]} 43. Kg3 {[%clk 0:00:26]}  h6 {[%clk 0:00:15]} 44. f3 {[%clk 0:00:27]}  Kf6 {[%clk 0:00:16]} 45. h4 {[%clk 0:00:27]}  g5 {[%clk 0:00:17]} 46. hxg5+ {[%clk 0:00:27]}  hxg5 {[%clk 0:00:17]} 47. Ra7 {[%clk 0:00:28]}  Rb2 {[%clk 0:00:18]} 48. Kg4 {[%clk 0:00:28]}  Kg6 {[%clk 0:00:19]} 49. g3 {[%clk 0:00:27]}  b5 {[%clk 0:00:19]} 50. Ra6+ {[%clk 0:00:27]}  Kg7 {[%clk 0:00:19]} 51. Kxg5 {[%clk 0:00:28]}  b4 {[%clk 0:00:19]} 52. Kf5 {[%clk 0:00:28]}  Rf2 {[%clk 0:00:19]} 53. f4 {[%clk 0:00:26]}  exf4 {[%clk 0:00:18]} 54. gxf4 {[%clk 0:00:27]}  Rf3 {[%clk 0:00:18]} 55. Rb6 {[%clk 0:00:27]}  b3 {[%clk 0:00:17]} 56. Rxb3 {[%clk 0:00:27]} 1-0


[Site "https://www.chess.com"]